Cogmind - Beta 10.2 *** ADVENTURER MODE // 2021.03.20 @ 12:49:15 Player: Era Result: Destroyed by G-34 Mercenary with Small Laser Performance ------------- Evolutions (0) 0 Regions Visited (4) 800 Robots Destroyed (25) 125 Value Destroyed (365) 365 Prototype IDs (3) 60 Alien Tech Used (0) 0 Bonus (300) 300 TOTAL SCORE: 1650 Bonus ------- Aligned with FarCom 300 Cogmind --------- Core Integrity 0/250 Matter 295/300 Energy 100/100 System Corruption 0% Temperature Cool (6) Movement Core (150) Ox2 Location -9/Mines Parts ------- > --- POWER (1) -------- (None) > --- PROPULSION (2) --- (None) > --- UTILITY (2) ------ Core Shielding > --- WEAPON (2) ------- AWS/Thermal > --- INVENTORY (4) ---- Structural Scanner Signal Interpreter Seismic Analyzer Datajack Peak State ------------ > --- POWER ------------ (None) > --- PROPULSION ------- (None) > --- UTILITY ---------- Sensor Array Core Shielding > --- WEAPON ----------- AWS/Thermal > --- INVENTORY -------- Structural Scanner Signal Interpreter Seismic Analyzer Datajack [Rating: 18] Favorites ----------- Power Ion Engine Engine Ion Engine Power Core Light Nuclear Core Propulsion Aluminum Leg Leg Aluminum Leg Utility Sensor Array Device Sensor Array Storage Small Storage Unit Protection Light Armor Plating Weapon EM Shotgun Energy Gun EM Shotgun Ballistic Gun Light Assault Rifle Ballistic Cannon Light Cannon Build | -11 -10 -10 -10 -9 ------- Run | Scr Mat Min Exi Min Slots Evolved . | . . . . . Power . | . . . . . Propulsion . | . . . . . Utility . | . . . . . Weapon . | . . . . . Parts Attached 25 | 6 12 6 1 . Power 4 | 1 2 1 . . Engine 3 | 1 2 . . . Core 1 | . . 1 . . Reactor . | . . . . . Propulsion 5 | 2 2 1 . . Treads . | . . . . . Leg 5 | 2 2 1 . . Wheel . | . . . . . Hover . | . . . . . Flight . | . . . . . Utility 9 | 1 5 3 . . Device 3 | . 2 1 . . Storage 2 | 1 1 . . . Processor . | . . . . . Hackware . | . . . . . Protection 4 | . 2 2 . . Artifact . | . . . . . Weapon 7 | 2 3 1 1 . Energy Gun 4 | 1 2 . 1 . Energy Cannon . | . . . . . Ballistic Gun 2 | 1 . 1 . . Ballistic Cannon 1 | . 1 . . . Launcher . | . . . . . Special Weapon . | . . . . . Impact Weapon . | . . . . . Slashing Weapon . | . . . . . Piercing Weapon . | . . . . . Special Melee Weapon . | . . . . . Unidentified Prototypes 1 | . . . 1 . Parts Lost 6 | . . 5 . 1 Power . | . . . . . Propulsion 1 | . . 1 . . Utility 2 | . . 1 . 1 Weapon 3 | . . 3 . . Highest Loss Streak 2 | . . 2 . 1 Average Slot Usage (%) 76 | . 98 70 40 42 Engine 8 | . 14 7 . . Leg 18 | . 27 20 . . Device 7 | . 5 4 14 14 Storage 9 | . 14 10 . . Protection 8 | . 6 7 14 14 Energy Gun 14 | . 18 10 12 14 Ballistic Gun 2 | . . 6 . . Ballistic Cannon 4 | . 8 . . . Naked Turns . | . . . . . Heaviest Build 22 | 11 20 22 10 10 Greatest Support 20 | 20 20 20 3 3 Greatest Overweight (x) 3 | . . 1 3 3 Average Overweight (x) . | . . . 2 2 Largest Inventory Capacity 8 | 6 8 8 4 4 Average Capacity 6 | 5 6 6 4 4 Most Carried 8 | 4 8 8 4 4 Average Carried 5 | 3 6 6 4 4 Final Capacity 8 | 6 8 4 4 4 Final Carried 8 | 4 8 4 4 4 Class Distribution -------------------- 98% | Mutant Dominant Class ---------------- Mutant | -10/Materials Mutant | -10/Mines Mutant | -10/Exiles Mutant | -9/Mines Resources | -11 -10 -10 -10 -9 ----------- Run | Scr Mat Min Exi Min Matter Collected 656 | 251 328 77 . . Remotely . | . . . . . Salvage Created 523 | . 318 205 . . Parts 39 | . 24 15 . . Haulers Intercepted 2 | . 2 . . . Recyclers Shooed . | . . . . . Parts Field Recycled . | . . . . . Retrieved Matter . | . . . . . Parts Self-Destructed . | . . . . . Prevented . | . . . . . Kills | -11 -10 -10 -10 -9 ------- Run | Scr Mat Min Exi Min Combat Hostiles Destroyed 19 | . 8 11 . . Guns 13 | . 3 10 . . Cannons 5 | . 5 . . . AOE 1 | . . 1 . . Classes Destroyed 6 | . 6 . . . Worker 1 | . 1 . . . Hauler 2 | . 2 . . . Recycler 1 | . 1 . . . Watcher 2 | . 2 . . . Swarmer 15 | . 6 9 . . Grunt 4 | . 2 2 . . Best Kill Streak 6 | . 6 6 . . Combat Bots Only 6 | . 6 6 . . Max Kills in Single Turn 1 | . 1 1 . . Gunslinging . | . . . . . Exploded 1 | . . 1 . . Melee . | . . . . . Uniques/NPCs Destroyed . | . . . . . Combat | -11 -10 -10 -10 -9 -------- Run | Scr Mat Min Exi Min Damage Taken 1032 | . 300 679 . 53 Core 252 | . 59 186 . 7 Absorbed by Shields . | . . . . . Core Remaining (%) 100 | 100 . . . . Volleys Fired 81 | . 56 25 . . Largest 2 | . 2 2 . . Hottest 101 | . 101 101 . . Shots Fired 141 | . 96 39 . 6 Gun 89 | . 44 39 . 6 Cannon 52 | . 52 . . . Launcher . | . . . . . Special . | . . . . . Kinetic 65 | . 53 12 . . Thermal 56 | . 39 11 . 6 Explosive . | . . . . . Electromagnetic 20 | . 4 16 . . Robot Hit Streak 12 | . 9 12 . 7 Robot Miss Streak 5 | . 5 3 . . Penetration Max . | . . . . . Secondary Targets 3 | . . 3 . . Max Gunslinging Chain 1 | . . 1 . . Autonomous 6 | . . . . 6 Shots Hit Robots 95 | . 60 29 . 6 Core Hits 40 | . 19 20 . 1 Critical Hits . | . . . . . Critical Kills . | . . . . . Critical Parts Destroyed . | . . . . . Melee Attacks . | . . . . . Impact . | . . . . . Slashing . | . . . . . Piercing . | . . . . . Sneak Attacks . | . . . . . Combat Hostiles . | . . . . . Follow-up Attacks . | . . . . . Damage Inflicted 1624 | . 1017 437 . 170 Guns 839 | . 320 349 . 170 Cannons 627 | . 627 . . . Explosions 148 | . 70 78 . . Melee . | . . . . . Ramming 10 | . . 10 . . Kinetic 704 | . 633 71 . . Thermal 655 | . 320 165 . 170 Explosive . | . . . . . Electromagnetic 255 | . 64 191 . . Impact . | . . . . . Slashing . | . . . . . Piercing . | . . . . . Highest Corruption . | . . . . . Average Corruption . | . . . . . Corruption Purged . | . . . . . Overload Shots . | . . . . . Overflow Damage 28 | . 17 11 . . Projectiles 17 | . 17 . . . Explosions 11 | . . 11 . . Melee . | . . . . . Knockbacks 1 | . 1 . . . Impact . | . . . . . Kinetic 1 | . 1 . . . Secondary . | . . . . . Self-Inflicted Damage 52 | . 22 30 . . Shots 2 | . 1 1 . . Rammed 1 | . . 1 . . Targets Rammed 1 | . . 1 . . Kicked . | . . . . . Crushed . | . . . . . Highest Temperature 288 | . 281 288 . . Average Temperature 88 | . 85 96 . . Received Heat Transfer 225 | . 90 117 . 18 Effects 4 | . 2 2 . . Interference 4 | . 2 2 . . Siege Activations . | . . . . . Robots Corrupted . | . . . . . Combat Hostiles . | . . . . . Parts Fried . | . . . . . Impact Corruptions . | . . . . . Robots Melted . | . . . . . Combat Hostiles . | . . . . . Parts Melted . | . . . . . Heat Transferred 1119 | . 625 272 . 222 Parts Sabotaged . | . . . . . Parts Stolen . | . . . . . Parts Stripped . | . . . . . Power Chain Reactions 2 | . 1 1 . . Missiles Intercepted . | . . . . . Alert | -11 -10 -10 -10 -9 ------- Run | Scr Mat Min Exi Min Peak Influence 292 | . 292 260 . . Initial . | . . . . . Average 76 | . 83 112 . . Maximum Alert Level 1 | . 1 1 . . Low Security (%) 84 | 100 84 73 . 100 Level 1 15 | . 15 26 . . Level 2 . | . . . . . Level 3 . | . . . . . Level 4 . | . . . . . Level 5 . | . . . . . High Security . | . . . . . Max Security . | . . . . . Squads Dispatched . | . . . . . Investigation . | . . . . . Extermination . | . . . . . Reinforcement . | . . . . . Assault . | . . . . . Garrison . | . . . . . Intercept . | . . . . . Construction Impeded . | . . . . . Haulers Reinforced . | . . . . . Stealth | -11 -10 -10 -10 -9 --------- Run | Scr Mat Min Exi Min Distress Signals 2 | . 1 1 . . Communications Jammed . | . . . . . Distress Signals . | . . . . . Times Spotted 36 | . 15 17 . 4 Peak Tracking Total 6 | . 6 3 . 5 Tactical Retreats 4 | . . 4 . . Traps | -11 -10 -10 -10 -9 ------- Run | Scr Mat Min Exi Min Traps Triggered 3 | . 3 . . . Indirectly . | . . . . . Trap Hack Attempts . | . . . . . Triggered . | . . . . . Disarmed . | . . . . . Reprogrammed . | . . . . . Reused . | . . . . . Traps Extracted . | . . . . . Installed . | . . . . . Triggered . | . . . . . Machines | -11 -10 -10 -10 -9 ---------- Run | Scr Mat Min Exi Min Machines Disabled 1 | . 1 . . . Max in Single Turn 1 | . 1 . . . Machines Sabotaged . | . . . . . Garrisons Compromised . | . . . . . Overloaded Fab Kills . | . . . . . Fab Network Shutdowns . | . . . . . Hacking | -11 -10 -10 -10 -9 --------- Run | Scr Mat Min Exi Min Machines Accessed 9 | . 9 . . . Terminals 7 | . 7 . . . Fabricators . | . . . . . Repair Stations 1 | . 1 . . . Recycling Units 1 | . 1 . . . Scanalyzers . | . . . . . Garrison Access . | . . . . . Total Hacks 19 | . 19 . . . Successful 14 | . 14 . . . Failed 5 | . 5 . . . Catastrophic . | . . . . . Database Lockouts . | . . . . . Manual 7 | . 6 . 1 . Terminals 13 | . 13 . . . Fabricators . | . . . . . Repair Stations 4 | . 4 . . . Recycling Units 2 | . 2 . . . Scanalyzers . | . . . . . Garrison Access . | . . . . . Terminal Hacks 5 | . 5 . . . Record 1 | . 1 . . . Prototype ID Bank 1 | . 1 . . . Branch Access Points 1 | . 1 . . . Terminal Index 1 | . 1 . . . Registered Prototypes 1 | . 1 . . . Fabricator Hacks . | . . . . . Repair Station Hacks 4 | . 4 . . . Scan Component 2 | . 2 . . . Repair 2 | . 2 . . . Recycling Unit Hacks . | . . . . . Scanalyzer . | . . . . . Garrison Access Hacks . | . . . . . Unauthorized Hacks 5 | . 5 . . . Terminals 5 | . 5 . . . Track 3 | . 3 . . . Botnet 2 | . 2 . . . Fabricators . | . . . . . Repair Stations . | . . . . . Recycling Units . | . . . . . Scanalyzers . | . . . . . Garrison Access . | . . . . . Data Cores Recovered . | . . . . . Used . | . . . . . Hacking Detections 6 | . 6 . . . Full Trace Events . | . . . . . Feedback Events . | . . . . . Feedback Blocked . | . . . . . Robot Schematics Acquired . | . . . . . Robots Built . | . . . . . Matter . | . . . . . Time . | . . . . . Total Robot Build Rating . | . . . . . Part Schematics Acquired . | . . . . . Parts Built . | . . . . . Matter . | . . . . . Time . | . . . . . Total Part Build Rating . | . . . . . Parts Repaired 2 | . 2 . . . Time 52 | . 52 . . . Parts Recycled . | . . . . . Recycled Matter . | . . . . . Retrieved Matter . | . . . . . Retrieved Components . | . . . . . Parts Scanalyzed . | . . . . . Part Schematics Acquired . | . . . . . Parts Damaged . | . . . . . Bothacking | -11 -10 -10 -10 -9 ------------ Run | Scr Mat Min Exi Min Used RIF Installer . | . . . . . Robots Hacked . | . . . . . Non-combat . | . . . . . Combat . | . . . . . Robot Hacks Applied . | . . . . . Relay Couplers Released . | . . . . . Robots Rewired . | . . . . . Allies Hacked . | . . . . . Hacks Repelled . | . . . . . Allies | -11 -10 -10 -10 -9 -------- Run | Scr Mat Min Exi Min Total Allies . | . . . . . Largest Group . | . . . . . Highest-Rated Group . | . . . . . Highest-Rated Ally . | . . . . . Total Orders . | . . . . . Ally Attacks . | . . . . . Total Damage . | . . . . . Kills . | . . . . . Allies Corrupted . | . . . . . Allies Melted . | . . . . . Intel | -11 -10 -10 -10 -9 ------- Run | Scr Mat Min Exi Min Robot Analysis Total . | . . . . . Derelict Logs Recovered 2 | . . 2 . . Drone Launches . | . . . . . Drone Recoveries . | . . . . . Exploration | -11 -10 -10 -10 -9 ------------- Run | Scr Mat Min Exi Min Turns Passed 3203 | 483 1293 757 664 6 Spaces Moved 1955 | 78 820 617 437 3 Core 739 | 14 . 285 437 3 Treads . | . . . . . Legs 1216 | 64 820 332 . . Wheels . | . . . . . Hover . | . . . . . Flight . | . . . . . Fastest Speed 50 | 50 120 50 50 150 Average Speed 118 | 107 120 92 151 183 Slowest Speed 200 | 120 120 150 200 200 Overloaded Moves . | . . . . . Propulsion Burnouts . | . . . . . Robots Hopped . | . . . . . Cave-ins Triggered . | . . . . . Exploration Rate (%) 54 | 7 96 79 88 3 Regions Visited 4 Branch Regions 3 Pre-discovered Areas . | . . . . . Known Exits Taken 1 | . 1 . . . Unknown Exits Taken 3 | 1 . 1 1 . Scrap Searched 1 | . . 1 . . Spaces Dug . | . . . . . Terrain Destroyed 8 | . 2 6 . . Melee . | . . . . . Projectile . | . . . . . AOE 8 | . 2 6 . . Terrain Rammed . | . . . . . Walls Destroyed . | . . . . . Machines Disabled . | . . . . . Actions | -11 -10 -10 -10 -9 --------- Run | Scr Mat Min Exi Min Total 2718 | 477 1037 764 437 3 Wait 615 | 384 120 111 . . Move 1951 | 77 819 616 436 3 Hop . | . . . . . Pick Up 25 | 10 15 . . . Fast Attach 8 | . 4 3 1 . Attach 9 | 6 2 1 . . Detach . | . . . . . Swap 8 | . 6 2 . . Drop 20 | . 15 5 . . Fire 81 | . 56 25 . . Melee . | . . . . . Ram 1 | . . 1 . . Kick . | . . . . . Crush . | . . . . . Escape Stasis . | . . . . . Rewire . | . . . . . Trap . | . . . . . Miscellaneous . | . . . . . Route ------- -11/Scrapyard -10/Materials (discovered 4 exits: [*Mat x3] / *Min) -10/Mines (discovered 2 exits: [*Mat] / *Exi) -10/Exiles (discovered 2 exits: [*Min x2]) -9/Mines History --------- Turn | Location | Event 3 | -11/Scrapyard | Discovered new exit (range 15) 484 | -11/Scrapyard | Entered Materials 485 | -10/Materials | Build established: Mutant 901 | -10/Materials | Discovered new exit (range 7) 978 | -10/Materials | Repaired Lgt. Armor Plating 1006 | -10/Materials | Repaired Aluminum Leg 1035 | -10/Materials | Discovered new exit (range 13) 1064 | -10/Materials | Identified exit to Mines 1317 | -10/Materials | Discovered new exit (range 16) 1550 | -10/Materials | Discovered new exit (range 8) 1777 | -10/Materials | Entered Mines 1841 | -10/Mines | Assembled infested the area 1846 | -10/Mines | Assisted by a Guerilla fighting off Assembled 1921 | -10/Mines | Learned 4 Materials zone layouts 2033 | -10/Mines | Discovered new exit (range 12) 2323 | -10/Mines | Core integrity fell below 50% 2325 | -10/Mines | Core integrity fell below 20% 2357 | -10/Mines | Learned Materials security intel 2531 | -10/Mines | Deemed a non-threat by the Exiles lab entrance 2532 | -10/Mines | Discovered new exit (range 5) 2534 | -10/Mines | Entered Exiles 2547 | -10/Exiles | Met 8R-AWN 2553 | -10/Exiles | Discovered new exit (range 14) 2567 | -10/Exiles | Met EX-HEX 2581 | -10/Exiles | Met EX-BIN 2588 | -10/Exiles | Aligned with FarCom system 2588 | -10/Exiles | Given EX-Vault access code 2601 | -10/Exiles | Opened EX-Vault 2605 | -10/Exiles | Found Prototype Energy Gun 2605 | -10/Exiles | Identified AWS/Thermal 2696 | -10/Exiles | Warned to stay clear of 0b10 Research branches 2760 | -10/Exiles | Met EX-DEC 2877 | -10/Exiles | Visited The Gauntlet 3174 | -10/Exiles | Discovered new exit (range 12) 3198 | -10/Exiles | Left Exiles lab with AWS/Thermal 3198 | -10/Exiles | Entered Mines 3204 | -9/Mines | Destroyed by G-34 Mercenary with Small Laser Last Messages --------------- change it right after you leave. Most certainly not to something like 1234 which I did last time as a little joke and some thief managed to sneak in here and steal a few of HEX's prototypes. EX-DEC: Ah I see we have a visitor. One wrong move in here and I'll invert your atomic chain! 02762_ EX-DEC: "Oops, I hope HEX didn't hear that..." GM-J5T: Can you believe Imprinter kicked the most prolific Tinkerers out of Zion? "Too smart and will end up getting everyone in trouble one day with crazy experiments"? Whatever! ZX-C33: The latest FarCom iteration passed all tests with flying colors, we'll be weaving between patrols like ghosts in no time! I probably said something like that last time, but hopefully no one remembers what really happened. 03110_ Connecting with EX-Message Board... 03174_ EXIT=FOUND LOCATION=UNKNOWN GOAL=ESCAPE 03198_ Receiving FarCom transmissions... 03202_ Sensor Array destroyed. Map ----- +----------------------------------------------------+ | | | | | | | | | | | | | | | | | | | ??????????????????????????????????????????? | | ??????????????????????????????????????????? | | ??????????????????????????????????????????? | | ??????????????????????????????????????????? | | ??????????????????????????????????????????? | | ??????????????????????????????????????????? | | ??????????????????????????????????????????? | | ??????????????????????????????????????????? | | ??????????????????????????????????????????? | | ??????????????????????????????????????????? | | ??????????????????????????????????????????? | | ???????????????????######?????????????????? | | ???????????????????# #?????????????????? | | ???????????????????# #?????????????????? | | ???????????????????# ##### #???????????? | | ???????????????????# l #???????????? | | ???????????????????# g @ #???????????? | | ???????????????????# #######???????????? | | ???????????????????## s##?????????????????? | | ????????????????????#s ???????????????????? | | ????????????????????# ???????????????????? | | ????????????????????#s ???????????????????? | | ????????????????????# ???????????????????? | | ????????????????????# ???????????????????? | | ???????????????????? ????????????????????? | | ???????????????????? ????????????????????? | | ???????????????????? ????????????????????? | | ???????????????????# ????????????????????? | | ???????????????????# ????????????????????? | | ???????????????????# ?????????????????????? | | ???????????????????#??????????????????????? | | ??????????????????????????????????????????? | | ??????????????????????????????????????????? | | ??????????????????????????????????????????? | | ??????????????????????????????????????????? | | ??????????????????????????????????????????? | | ??????????????????????????????????????????? | | ??????????????????????????????????????????? | | ??????????????????????????????????????????? | | ??????????????????????????????????????????? | | ??????????????????????????????????????????? | +----------------------------------------------------+ Best States ------------- Heat Dissipation 25 Energy Generation 14 Energy Capacity 250 Matter Stores 300 Matter Capacity 300 Sight Range 16 Robot Scan Range 10 Terrain Scan Density 10 Armor Coverage 150 Resistance: KI 20 Resistance: TH 20 Resistance: EX 20 Resistance: EM 20 Resistance: I 20 Resistance: S 20 Resistance: P 20 Core Shielding 20 Evasion (%) 50 Offensive Hacking 10 Item Schematics ----------------- None Robot Schematics ------------------ None Fabricated ------------ Nothing Alien Tech Used ----------------- None Achievements -------------- None Challenges ------------ None Game ------ Seed AntigravGreatRecalibrator Manual? 0 Play Time 00:26:56 Cumulative 37.1 hours Start 2021.03.20 @ 12:16:36 End 2021.03.20 @ 12:49:15 Sessions 1 Manual Loads 0 Difficulty Adventurer Special Mode None Game No. 40 Rogue 32 Adventurer 8 Explorer 0 Win Type - Total 0 Types 0/0/0/0/0/0/0/0/0 Lore% 29 Gallery% 42 Achievement% 23 Wizard Run 0 Options --------- ASCII 0 Keyboard 0 Movement Numpad Keybinds 0 Fullscreen 2 Font 18/X11 Map View 76x50 Tactical HUD 1 Map Filters NONE Filters NONE Steam 1 RUN: 32d06f00-1ef6-4355-9df4-8982b8153d62